[Event "*** Titled Tuesday Blitz"]
[Site "Chess.com"]
[Date "2019.06.04"]
[Round "5"]
[White "Shivagami"]
[Black "Chesska7"]
[Result "0-1"]
[WhiteElo "2083"]
[BlackElo "2135"]
[TimeControl "180+2"]
[EndTime "14:07:17 PDT"]
[Termination "Chesska7 won by resignation"]

1. d4 {[%clk 0:02:58.9]} 1... Nf6 {[%clk 0:03:00]} 2. Bf4 {[%clk 0:02:56.1]}
2... e6 {[%clk 0:02:57.2]} 3. e3 {[%clk 0:02:55.8]} 3... c5 {[%clk 0:02:58.5]}
4. c3 {[%clk 0:02:54.9]} 4... b6 {[%clk 0:02:59.8]} 5. Nf3 {[%clk 0:02:48.2]}
5... Bb7 {[%clk 0:02:59.3]} 6. Bd3 {[%clk 0:02:45.9]} 6... Be7 {[%clk
0:02:58.9]} 7. h3 {[%clk 0:02:43.4]} 7... O-O {[%clk 0:02:57.8]} 8. O-O {[%clk
0:02:39.4]} 8... a6 {[%clk 0:02:57.7]} 9. Nbd2 {[%clk 0:02:38.6]} 9... cxd4
{[%clk 0:02:58.3]} 10. exd4 {[%clk 0:02:35.5]} 10... d6 {[%clk 0:02:59.2]} 11.
Qe2 {[%clk 0:02:32.9]} 11... Nbd7 {[%clk 0:02:59.5]} 12. Rfe1 {[%clk 0:02:28.7]}
12... h6 {[%clk 0:02:58]} 13. Rad1 {[%clk 0:02:20.8]} 13... Re8 {[%clk
0:02:58.3]} 14. Nc4 {[%clk 0:02:18.4]} 14... Qc7 {[%clk 0:02:58.3]} 15. Bh2
{[%clk 0:02:08.1]} 15... Bf8 {[%clk 0:02:51.1]} 16. Ne3 {[%clk 0:01:56.8]} 16...
b5 {[%clk 0:02:22.4]} 17. Bb1 {[%clk 0:01:43.3]} 17... Bc6 {[%clk 0:01:57.6]}
18. c4 {[%clk 0:01:26]} 18... bxc4 {[%clk 0:01:47.3]} 19. Nxc4 {[%clk
0:01:25.4]} 19... Nb6 {[%clk 0:01:42.5]} 20. Ne3 {[%clk 0:00:56.9]} 20... Nbd5
{[%clk 0:01:39.5]} 21. Rc1 {[%clk 0:00:54]} 21... Qb7 {[%clk 0:01:39.4]} 22. Nc4
{[%clk 0:00:41.7]} 22... Bb5 {[%clk 0:01:40.3]} 23. b3 {[%clk 0:00:34.8]} 23...
Nb6 {[%clk 0:01:31.9]} 24. a4 {[%clk 0:00:30.8]} 24... Bxc4 {[%clk 0:01:30]} 25.
bxc4 {[%clk 0:00:31.1]} 25... Nxa4 {[%clk 0:01:27.1]} 26. Nd2 {[%clk 0:00:27.7]}
26... Nb6 {[%clk 0:01:16.9]} 27. Ne4 {[%clk 0:00:28]} 27... Nxe4 {[%clk
0:01:11.2]} 28. Bxe4 {[%clk 0:00:26.7]} 28... d5 {[%clk 0:01:12.2]} 29. Bf3
{[%clk 0:00:21.9]} 29... Qd7 {[%clk 0:01:02.1]} 30. c5 {[%clk 0:00:21.5]} 30...
Nc4 {[%clk 0:01:03]} 31. Qd3 {[%clk 0:00:21.6]} 31... g6 {[%clk 0:00:46.6]} 32.
Rb1 {[%clk 0:00:21.2]} 32... Bg7 {[%clk 0:00:44.5]} 33. Rb3 {[%clk 0:00:21.4]}
33... Qe7 {[%clk 0:00:42.3]} 34. Reb1 {[%clk 0:00:21.2]} 34... Qf6 {[%clk
0:00:42.3]} 35. Rd1 {[%clk 0:00:19.4]} 35... a5 {[%clk 0:00:38.8]} 36. Rb7
{[%clk 0:00:19.1]} 36... a4 {[%clk 0:00:37.3]} 37. Rbb1 {[%clk 0:00:10.5]} 37...
a3 {[%clk 0:00:36.9]} 38. Rd2 {[%clk 0:00:10.4]} 38... Nxd2 {[%clk 0:00:37.1]}
0-1

[Event "*** Titled Tuesday Blitz"]
[Site "Chess.com"]
[Date "2019.06.04"]
[Round "5"]
[White "HanSchut"]
[Black "Komissarov_alex"]
[Result "0-1"]
[WhiteElo "2182"]
[BlackElo "2112"]
[TimeControl "180+2"]
[EndTime "14:07:22 PDT"]
[Termination "Komissarov_alex won by resignation"]

1. e4 {[%clk 0:03:01.9]} 1... e5 {[%clk 0:02:52.6]} 2. Nf3 {[%clk 0:03:02.2]}
2... Nc6 {[%clk 0:02:51.8]} 3. Bc4 {[%clk 0:03:03.7]} 3... Nf6 {[%clk
0:02:50.5]} 4. d4 {[%clk 0:03:04.2]} 4... exd4 {[%clk 0:02:50.1]} 5. e5 {[%clk
0:03:06.1]} 5... d5 {[%clk 0:02:50]} 6. Bb5 {[%clk 0:03:07.6]} 6... Ne4 {[%clk
0:02:50.3]} 7. Nxd4 {[%clk 0:03:09.1]} 7... Bc5 {[%clk 0:02:49.6]} 8. Be3 {[%clk
0:03:09.1]} 8... Bd7 {[%clk 0:02:47.5]} 9. Bxc6 {[%clk 0:03:05.6]} 9... bxc6
{[%clk 0:02:46.5]} 10. O-O {[%clk 0:03:03.2]} 10... O-O {[%clk 0:02:42.7]} 11.
f3 {[%clk 0:03:04.1]} 11... Ng5 {[%clk 0:02:36.6]} 12. f4 {[%clk 0:03:05]} 12...
Ne4 {[%clk 0:02:36.6]} 13. Nd2 {[%clk 0:03:06.2]} 13... f6 {[%clk 0:02:33.6]}
14. Nxe4 {[%clk 0:03:04.8]} 14... dxe4 {[%clk 0:02:32.9]} 15. Qe2 {[%clk
0:03:05.1]} 15... fxe5 {[%clk 0:02:26.8]} 16. Qc4+ {[%clk 0:03:05]} 16... Kh8
{[%clk 0:02:21.2]} 17. Qxc5 {[%clk 0:03:05.8]} 17... exd4 {[%clk 0:02:14.4]} 18.
Bxd4 {[%clk 0:03:06.7]} 18... Rf7 {[%clk 0:02:05.3]} 19. f5 {[%clk 0:02:33.9]}
19... Qf8 {[%clk 0:01:59.6]} 20. Qxf8+ {[%clk 0:02:19.7]} 20... Raxf8 {[%clk
0:01:54.1]} 21. f6 {[%clk 0:02:19.6]} 21... Kg8 {[%clk 0:01:53]} 22. Rf4 {[%clk
0:02:11.3]} 22... gxf6 {[%clk 0:01:50.1]} 23. Rxe4 {[%clk 0:02:08.7]} 23... Bf5
{[%clk 0:01:49.8]} 24. Re2 {[%clk 0:02:04.9]} 24... Rd7 {[%clk 0:01:46.8]} 25.
Bxa7 {[%clk 0:01:59.6]} 25... Ra8 {[%clk 0:01:39.9]} 26. Bf2 {[%clk 0:01:40]}
26... Kf7 {[%clk 0:01:39.2]} 27. a3 {[%clk 0:01:34.3]} 27... Rad8 {[%clk
0:01:36]} 28. h3 {[%clk 0:01:29.1]} 28... Rd2 {[%clk 0:01:32.7]} 29. Rae1 {[%clk
0:01:22.1]} 29... Bxc2 {[%clk 0:01:29.4]} 30. Re7+ {[%clk 0:01:19]} 30... Kg6
{[%clk 0:01:24.3]} 31. Rxc7 {[%clk 0:01:06.1]} 31... Ba4 {[%clk 0:01:24.4]} 32.
b4 {[%clk 0:00:59.5]} 32... Rd1 {[%clk 0:01:22.5]} 33. Ra7 {[%clk 0:00:35.4]}
33... Bc2 {[%clk 0:01:14.5]} 34. a4 {[%clk 0:00:30.7]} 34... Rb8 {[%clk
0:01:10.4]} 35. Rxd1 {[%clk 0:00:29.8]} 35... Bxd1 {[%clk 0:01:09.5]} 36. Bc5
{[%clk 0:00:31.3]} 36... Bb3 {[%clk 0:01:08.3]} 37. Kf2 {[%clk 0:00:27.6]} 37...
Bd5 {[%clk 0:01:01.7]} 38. a5 {[%clk 0:00:27.9]} 38... Re8 {[%clk 0:00:55.8]}
39. Rd7 {[%clk 0:00:22.5]} 39... Bc4 {[%clk 0:00:46.7]} 40. Rd2 {[%clk
0:00:21.2]} 40... Bb5 {[%clk 0:00:44.7]} 41. Be3 {[%clk 0:00:21.3]} 41... Re6
{[%clk 0:00:37.6]} 42. Rd4 {[%clk 0:00:21.1]} 42... f5 {[%clk 0:00:34.9]} 43.
Rd8 {[%clk 0:00:19]} 43... Re4 {[%clk 0:00:32.6]} 44. Bc5 {[%clk 0:00:18.2]}
44... Re6 {[%clk 0:00:31.2]} 45. g3 {[%clk 0:00:18.1]} 45... Kf7 {[%clk
0:00:28.2]} 46. Rd7+ {[%clk 0:00:19.1]} 46... Kg6 {[%clk 0:00:27.3]} 47. Rg7+
{[%clk 0:00:19.7]} 47... Kxg7 {[%clk 0:00:25.6]} 0-1

[Event "*** Titled Tuesday Blitz"]
[Site "Chess.com"]
[Date "2019.06.04"]
[Round "5"]
[White "JMatias"]
[Black "Torrentec"]
[Result "1-0"]
[WhiteElo "2435"]
[BlackElo "2398"]
[TimeControl "180+2"]
[EndTime "14:07:26 PDT"]
[Termination "JMatias won by checkmate"]

1. c4 {[%clk 0:03:01.9]} 1... e5 {[%clk 0:03:01]} 2. g3 {[%clk 0:02:56.8]} 2...
Nc6 {[%clk 0:03:01.6]} 3. Bg2 {[%clk 0:02:58.2]} 3... Nf6 {[%clk 0:03:01.6]} 4.
Nc3 {[%clk 0:02:57.7]} 4... Bb4 {[%clk 0:02:59.4]} 5. Nd5 {[%clk 0:02:58.4]}
5... a5 {[%clk 0:02:59]} 6. e3 {[%clk 0:02:57.6]} 6... O-O {[%clk 0:02:58.5]} 7.
Ne2 {[%clk 0:02:57.7]} 7... d6 {[%clk 0:02:55]} 8. O-O {[%clk 0:02:57.5]} 8...
Nxd5 {[%clk 0:02:55.1]} 9. cxd5 {[%clk 0:02:57.2]} 9... Ne7 {[%clk 0:02:55.6]}
10. a3 {[%clk 0:02:55.9]} 10... Bc5 {[%clk 0:02:56.2]} 11. d4 {[%clk 0:02:57.8]}
11... Ba7 {[%clk 0:02:51.2]} 12. b3 {[%clk 0:02:47.2]} 12... Nf5 {[%clk
0:02:48.5]} 13. dxe5 {[%clk 0:02:47.9]} 13... dxe5 {[%clk 0:02:49.5]} 14. Bb2
{[%clk 0:02:48.3]} 14... Qe7 {[%clk 0:02:47.3]} 15. Rc1 {[%clk 0:02:26.6]} 15...
Nd6 {[%clk 0:02:42.9]} 16. Nc3 {[%clk 0:02:20.1]} 16... Bf5 {[%clk 0:02:34.7]}
17. Na4 {[%clk 0:02:20.1]} 17... Rfd8 {[%clk 0:02:27.3]} 18. Qd2 {[%clk
0:02:19.4]} 18... h5 {[%clk 0:01:30.6]} 19. Qc3 {[%clk 0:02:13.4]} 19... f6
{[%clk 0:01:11.1]} 20. Qxc7 {[%clk 0:02:10.3]} 20... Rd7 {[%clk 0:01:12.6]} 21.
Qxa5 {[%clk 0:02:09.1]} 21... Qe8 {[%clk 0:01:05.5]} 22. Qb4 {[%clk 0:01:52.7]}
22... Bd3 {[%clk 0:00:59.6]} 23. Rfd1 {[%clk 0:01:47.4]} 23... e4 {[%clk
0:01:00.6]} 24. Bd4 {[%clk 0:01:36.8]} 24... Bxd4 {[%clk 0:01:00.1]} 25. Qxd4
{[%clk 0:01:38.7]} 25... Nb5 {[%clk 0:00:57]} 26. Qb4 {[%clk 0:01:39.5]} 26...
Rad8 {[%clk 0:00:45.3]} 27. Rxd3 {[%clk 0:01:39.7]} 27... exd3 {[%clk
0:00:46.1]} 28. Qxb5 {[%clk 0:01:41]} 28... Qe7 {[%clk 0:00:39]} 29. Qxd3 {[%clk
0:01:28.8]} 29... Qxa3 {[%clk 0:00:39.3]} 30. Rd1 {[%clk 0:01:29]} 30... Rd6
{[%clk 0:00:32.7]} 31. Qc3 {[%clk 0:01:19.4]} 31... b5 {[%clk 0:00:28.8]} 32.
Ra1 {[%clk 0:01:13.8]} 32... b4 {[%clk 0:00:29.2]} 33. Rxa3 {[%clk 0:01:09]}
33... bxc3 {[%clk 0:00:31.1]} 34. Nxc3 {[%clk 0:01:10.9]} 34... Rb8 {[%clk
0:00:32]} 35. Bf1 {[%clk 0:01:09.9]} 35... Rc8 {[%clk 0:00:31.6]} 36. Bc4 {[%clk
0:01:09.9]} 36... Kh7 {[%clk 0:00:30.4]} 37. h4 {[%clk 0:01:10.5]} 37... Rb6
{[%clk 0:00:29.8]} 38. Ra7 {[%clk 0:01:10.8]} 38... Kh6 {[%clk 0:00:29.1]} 39.
Kg2 {[%clk 0:01:10.7]} 39... Rd8 {[%clk 0:00:27.8]} 40. Kf3 {[%clk 0:01:11.5]}
40... Rdd6 {[%clk 0:00:28.2]} 41. Ke4 {[%clk 0:01:12.1]} 41... g6 {[%clk
0:00:28.8]} 42. Kd4 {[%clk 0:01:12.9]} 42... Rd8 {[%clk 0:00:29.7]} 43. Rc7
{[%clk 0:01:12.1]} 43... Rbb8 {[%clk 0:00:29.3]} 44. Rf7 {[%clk 0:01:10.8]}
44... Rb6 {[%clk 0:00:27.1]} 45. Ne4 {[%clk 0:01:10]} 45... g5 {[%clk
0:00:25.1]} 46. Rxf6+ {[%clk 0:01:06.1]} 46... Rxf6 {[%clk 0:00:25.7]} 47. Nxf6
{[%clk 0:01:08]} 47... gxh4 {[%clk 0:00:27.5]} 48. gxh4 {[%clk 0:01:09.9]} 48...
Kg6 {[%clk 0:00:28.5]} 49. Ne4 {[%clk 0:01:08.3]} 49... Kf5 {[%clk 0:00:29.7]}
50. f3 {[%clk 0:01:08]} 50... Rg8 {[%clk 0:00:28.4]} 51. d6 {[%clk 0:01:05.8]}
51... Rg7 {[%clk 0:00:27.6]} 52. Bb5 {[%clk 0:01:03.6]} 52... Ke6 {[%clk
0:00:28.3]} 53. d7 {[%clk 0:01:05.1]} 53... Ke7 {[%clk 0:00:29]} 54. Nc5 {[%clk
0:01:03.3]} 54... Rg6 {[%clk 0:00:26.2]} 55. Nb7 {[%clk 0:01:03.7]} 55... Rd6+
{[%clk 0:00:26]} 56. Nxd6 {[%clk 0:01:04.3]} 56... Kd8 {[%clk 0:00:27.9]} 57.
Nf7+ {[%clk 0:01:03.6]} 57... Kc7 {[%clk 0:00:29.8]} 58. d8=Q+ {[%clk 0:01:03]}
58... Kb7 {[%clk 0:00:31.7]} 59. Qg5 {[%clk 0:01:03.6]} 59... Kb6 {[%clk
0:00:32.6]} 60. Qxh5 {[%clk 0:01:04.4]} 60... Ka5 {[%clk 0:00:34.5]} 61. Bc4+
{[%clk 0:01:05.3]} 61... Kb4 {[%clk 0:00:36.4]} 62. Qc5# {[%clk 0:01:04.6]} 1-0

[Event "*** Titled Tuesday Blitz"]
[Site "Chess.com"]
[Date "2019.06.04"]
[Round "5"]
[White "Vamostodorecto"]
[Black "Manukyan_Artak"]
[Result "0-1"]
[WhiteElo "2424"]
[BlackElo "2407"]
[TimeControl "180+2"]
[EndTime "14:07:34 PDT"]
[Termination "Manukyan_Artak won on time"]

1. d4 {[%clk 0:03:01.9]} 1... Nf6 {[%clk 0:02:57.5]} 2. c4 {[%clk 0:03:03.3]}
2... e6 {[%clk 0:02:56.4]} 3. Nc3 {[%clk 0:03:04.2]} 3... Bb4 {[%clk 0:02:57.1]}
4. e3 {[%clk 0:03:05.7]} 4... d5 {[%clk 0:02:57.2]} 5. Nf3 {[%clk 0:03:02.7]}
5... O-O {[%clk 0:02:58.1]} 6. Bd3 {[%clk 0:03:03.7]} 6... dxc4 {[%clk
0:02:58.8]} 7. Bxc4 {[%clk 0:03:05.6]} 7... c5 {[%clk 0:02:59.9]} 8. O-O {[%clk
0:03:05.7]} 8... cxd4 {[%clk 0:03:00.9]} 9. exd4 {[%clk 0:03:07.6]} 9... Nc6
{[%clk 0:03:01]} 10. Bg5 {[%clk 0:03:06.1]} 10... Be7 {[%clk 0:03:01.9]} 11. a3
{[%clk 0:03:03]} 11... a6 {[%clk 0:03:00.7]} 12. Rc1 {[%clk 0:02:58.4]} 12... b5
{[%clk 0:02:59.9]} 13. Ba2 {[%clk 0:02:58.8]} 13... b4 {[%clk 0:02:58.8]} 14.
Na4 {[%clk 0:02:39.4]} 14... Bb7 {[%clk 0:02:54.5]} 15. Bb1 {[%clk 0:02:40.6]}
15... bxa3 {[%clk 0:02:40.7]} 16. bxa3 {[%clk 0:02:37.8]} 16... Rc8 {[%clk
0:02:35.8]} 17. Qd3 {[%clk 0:02:36.5]} 17... g6 {[%clk 0:02:31]} 18. Rfd1 {[%clk
0:02:34.2]} 18... Kg7 {[%clk 0:02:26]} 19. Ne5 {[%clk 0:02:28.1]} 19... Nxe5
{[%clk 0:02:16.4]} 20. dxe5 {[%clk 0:02:30]} 20... Nd5 {[%clk 0:02:17.4]} 21.
Bd2 {[%clk 0:02:15.1]} 21... Rxc1 {[%clk 0:02:01.7]} 22. Bxc1 {[%clk 0:02:17]}
22... Qa5 {[%clk 0:02:02]} 23. Nb2 {[%clk 0:01:31.6]} 23... Rd8 {[%clk
0:01:42.8]} 24. Nc4 {[%clk 0:01:31]} 24... Qc3 {[%clk 0:01:41]} 25. Bb2 {[%clk
0:00:55.1]} 25... Qxd3 {[%clk 0:01:35.9]} 26. Rxd3 {[%clk 0:00:53.4]} 26... Nf4
{[%clk 0:01:35.2]} 27. Rxd8 {[%clk 0:00:52.5]} 27... Bxd8 {[%clk 0:01:37.1]} 28.
Nd6 {[%clk 0:00:45.8]} 28... Bxg2 {[%clk 0:01:31.8]} 29. Ba2 {[%clk 0:00:25.2]}
29... Bd5 {[%clk 0:01:26.4]} 30. Bb1 {[%clk 0:00:26]} 30... Bb6 {[%clk
0:01:22.4]} 31. Kf1 {[%clk 0:00:25.7]} 31... Nh3 {[%clk 0:01:12]} 32. Bd3 {[%clk
0:00:23.9]} 32... a5 {[%clk 0:01:08.9]} 33. Ne8+ {[%clk 0:00:19.9]} 33... Kf8
{[%clk 0:01:05.5]} 34. Nf6 {[%clk 0:00:21]} 34... Nxf2 {[%clk 0:01:04.9]} 35.
Nd7+ {[%clk 0:00:21.7]} 35... Ke7 {[%clk 0:01:03.3]} 36. Bb5 {[%clk 0:00:23]}
36... Ba7 {[%clk 0:01:00.4]} 37. a4 {[%clk 0:00:24.4]} 37... Ng4 {[%clk
0:00:59]} 38. Ba3+ {[%clk 0:00:25.9]} 38... Kd8 {[%clk 0:00:59.2]} 39. Bd6
{[%clk 0:00:22.9]} 39... Nxh2+ {[%clk 0:00:54.9]} 40. Ke2 {[%clk 0:00:24.4]}
40... Ng4 {[%clk 0:00:52.9]} 41. Nf8 {[%clk 0:00:19.9]} 41... h5 {[%clk
0:00:51.8]} 42. Nh7 {[%clk 0:00:15.8]} 42... Bd4 {[%clk 0:00:45.7]} 43. Ng5
{[%clk 0:00:15.2]} 43... h4 {[%clk 0:00:39.3]} 44. Nxf7+ {[%clk 0:00:15.4]}
44... Kc8 {[%clk 0:00:40.5]} 45. Kd3 {[%clk 0:00:13]} 45... Bb6 {[%clk
0:00:35.7]} 46. Be7 {[%clk 0:00:09.2]} 46... h3 {[%clk 0:00:36.4]} 47. Ba6+
{[%clk 0:00:10.9]} 47... Kb8 {[%clk 0:00:33.8]} 48. Bd6+ {[%clk 0:00:08.9]}
48... Ka7 {[%clk 0:00:34.3]} 49. Bb5 {[%clk 0:00:07.1]} 49... h2 {[%clk
0:00:34.5]} 0-1

[Event "*** Titled Tuesday Blitz"]
[Site "Chess.com"]
[Date "2019.06.04"]
[Round "5"]
[White "Aknok"]
[Black "Jabberwockiez"]
[Result "1/2-1/2"]
[WhiteElo "2421"]
[BlackElo "2252"]
[TimeControl "180+2"]
[EndTime "14:07:36 PDT"]
[Termination "Game drawn by repetition"]

1. d4 {[%clk 0:03:01.9]} 1... Nf6 {[%clk 0:03:00.7]} 2. c4 {[%clk 0:03:02.7]}
2... e6 {[%clk 0:03:01.4]} 3. Nf3 {[%clk 0:03:03.9]} 3... Bb4+ {[%clk
0:03:02.2]} 4. Bd2 {[%clk 0:03:04.5]} 4... Qe7 {[%clk 0:03:03.4]} 5. g3 {[%clk
0:03:04.4]} 5... Bxd2+ {[%clk 0:03:03.7]} 6. Qxd2 {[%clk 0:03:05]} 6... Nc6
{[%clk 0:02:59.6]} 7. Nc3 {[%clk 0:03:04.4]} 7... d5 {[%clk 0:02:59.4]} 8. cxd5
{[%clk 0:03:00.3]} 8... exd5 {[%clk 0:03:01.3]} 9. Bg2 {[%clk 0:03:00.9]} 9...
O-O {[%clk 0:03:02.3]} 10. O-O {[%clk 0:03:00.5]} 10... Re8 {[%clk 0:02:59.9]}
11. Rfe1 {[%clk 0:02:47.8]} 11... a6 {[%clk 0:02:49.1]} 12. Rad1 {[%clk
0:02:37]} 12... Bf5 {[%clk 0:02:49.4]} 13. Qg5 {[%clk 0:02:23.5]} 13... Qe6
{[%clk 0:02:29.9]} 14. Nh4 {[%clk 0:02:04.3]} 14... Bc2 {[%clk 0:01:51.3]} 15.
Rc1 {[%clk 0:01:43.2]} 15... h6 {[%clk 0:01:43.2]} 16. Qd2 {[%clk 0:01:38.3]}
16... Bh7 {[%clk 0:01:42.8]} 17. Qd1 {[%clk 0:01:24.2]} 17... Rad8 {[%clk
0:01:33.4]} 18. e3 {[%clk 0:01:24.3]} 18... Na5 {[%clk 0:01:26.3]} 19. b3 {[%clk
0:01:00.4]} 19... Nc6 {[%clk 0:01:22]} 20. Na4 {[%clk 0:00:56.5]} 20... b6
{[%clk 0:01:13.6]} 21. Nb2 {[%clk 0:00:52.2]} 21... Nb4 {[%clk 0:00:59]} 22. Qd2
{[%clk 0:00:52]} 22... a5 {[%clk 0:00:47.9]} 23. a3 {[%clk 0:00:43.6]} 23... Na6
{[%clk 0:00:44.6]} 24. Nd3 {[%clk 0:00:34.8]} 24... c5 {[%clk 0:00:43.2]} 25.
Ne5 {[%clk 0:00:22.8]} 25... Nd7 {[%clk 0:00:39]} 26. f4 {[%clk 0:00:16.6]}
26... Nxe5 {[%clk 0:00:37.3]} 27. fxe5 {[%clk 0:00:15.4]} 27... Rc8 {[%clk
0:00:33.4]} 28. Rf1 {[%clk 0:00:09.7]} 28... cxd4 {[%clk 0:00:33.8]} 29. exd4
{[%clk 0:00:10.2]} 29... Rxc1 {[%clk 0:00:34.2]} 30. Rxc1 {[%clk 0:00:09.6]}
30... Rc8 {[%clk 0:00:35.6]} 31. Rxc8+ {[%clk 0:00:09.8]} 31... Qxc8 {[%clk
0:00:37.5]} 32. Bf1 {[%clk 0:00:11]} 32... Nc7 {[%clk 0:00:37.1]} 33. Qc3 {[%clk
0:00:10.9]} 33... Qb7 {[%clk 0:00:35.4]} 34. Ng2 {[%clk 0:00:11.7]} 34... Ne6
{[%clk 0:00:36.2]} 35. Ne3 {[%clk 0:00:12.5]} 35... Be4 {[%clk 0:00:36.8]} 36.
Bh3 {[%clk 0:00:11.5]} 36... Qc7 {[%clk 0:00:36.9]} 37. Qxc7 {[%clk 0:00:09.6]}
37... Nxc7 {[%clk 0:00:38.8]} 38. a4 {[%clk 0:00:05.6]} 38... b5 {[%clk
0:00:39.8]} 39. Kf2 {[%clk 0:00:05.7]} 39... b4 {[%clk 0:00:38.6]} 40. Bg2
{[%clk 0:00:03.3]} 40... Bxg2 {[%clk 0:00:34.2]} 41. Kxg2 {[%clk 0:00:04.5]}
41... Ne6 {[%clk 0:00:33.5]} 42. Nc2 {[%clk 0:00:05.5]} 42... f6 {[%clk
0:00:33.5]} 43. exf6 {[%clk 0:00:05.7]} 43... gxf6 {[%clk 0:00:35.4]} 44. Kf3
{[%clk 0:00:07]} 44... f5 {[%clk 0:00:36.8]} 45. Ke3 {[%clk 0:00:07.6]} 45...
Kf7 {[%clk 0:00:37.7]} 46. Ne1 {[%clk 0:00:08.6]} 46... Kf6 {[%clk 0:00:34.8]}
47. Nd3 {[%clk 0:00:09.5]} 47... h5 {[%clk 0:00:35.2]} 48. h4 {[%clk 0:00:10.2]}
48... Ke7 {[%clk 0:00:34.8]} 49. Nf4 {[%clk 0:00:10.4]} 49... Nxf4 {[%clk
0:00:32.2]} 50. Kxf4 {[%clk 0:00:12.3]} 50... Kf6 {[%clk 0:00:33.5]} 51. Kf3
{[%clk 0:00:13.1]} 51... Kf7 {[%clk 0:00:33.3]} 52. Ke3 {[%clk 0:00:14.4]} 52...
Ke6 {[%clk 0:00:34.3]} 53. Kf3 {[%clk 0:00:15.5]} 53... Kf7 {[%clk 0:00:35.2]}
54. Kf4 {[%clk 0:00:16.1]} 54... Kf6 {[%clk 0:00:36.3]} 55. Ke3 {[%clk
0:00:16.7]} 55... Ke6 {[%clk 0:00:36.7]} 56. Kf3 {[%clk 0:00:16.4]} 56... Kf7
{[%clk 0:00:37.9]} 1/2-1/2

[Event "*** Titled Tuesday Blitz"]
[Site "Chess.com"]
[Date "2019.06.04"]
[Round "5"]
[White "witcher8"]
[Black "Taabling"]
[Result "1-0"]
[WhiteElo "2372"]
[BlackElo "2251"]
[TimeControl "180+2"]
[EndTime "14:07:36 PDT"]
[Termination "witcher8 won by resignation"]

1. e4 {[%clk 0:03:01.9]} 1... e5 {[%clk 0:03:00.1]} 2. Nf3 {[%clk 0:03:02.3]}
2... d5 {[%clk 0:03:01.4]} 3. exd5 {[%clk 0:02:49.4]} 3... Bd6 {[%clk
0:03:01.2]} 4. d4 {[%clk 0:02:42.2]} 4... e4 {[%clk 0:03:01.3]} 5. Nfd2 {[%clk
0:02:35.8]} 5... f5 {[%clk 0:02:57.2]} 6. Nc4 {[%clk 0:02:33.7]} 6... Be7 {[%clk
0:02:56.5]} 7. Ne3 {[%clk 0:02:22.4]} 7... Nf6 {[%clk 0:02:55.8]} 8. c4 {[%clk
0:02:23.4]} 8... O-O {[%clk 0:02:56.5]} 9. Nc3 {[%clk 0:02:18.7]} 9... c6 {[%clk
0:02:57.3]} 10. Be2 {[%clk 0:02:13.6]} 10... f4 {[%clk 0:02:55.2]} 11. Nc2
{[%clk 0:02:05.4]} 11... cxd5 {[%clk 0:02:54.9]} 12. Bxf4 {[%clk 0:01:58.2]}
12... Nc6 {[%clk 0:02:52.1]} 13. Ne3 {[%clk 0:01:51.2]} 13... Be6 {[%clk
0:02:48.3]} 14. O-O {[%clk 0:01:50.7]} 14... Kh8 {[%clk 0:02:46.1]} 15. Bg5
{[%clk 0:01:50.3]} 15... dxc4 {[%clk 0:02:40.5]} 16. Bxf6 {[%clk 0:01:37.6]}
16... Bxf6 {[%clk 0:02:04.2]} 17. d5 {[%clk 0:01:38.5]} 17... Ne5 {[%clk
0:02:05.1]} 18. dxe6 {[%clk 0:01:33.3]} 18... Nd3 {[%clk 0:02:05.9]} 19. Nxe4
{[%clk 0:01:24.3]} 19... Bxb2 {[%clk 0:02:04.2]} 20. Rb1 {[%clk 0:01:23.4]}
20... Bd4 {[%clk 0:02:02.1]} 21. Bxd3 {[%clk 0:01:23.1]} 21... cxd3 {[%clk
0:01:54.7]} 22. Qxd3 {[%clk 0:01:22.4]} 22... Bxe3 {[%clk 0:01:54.5]} 23. Qxe3
{[%clk 0:01:19.6]} 23... Qe7 {[%clk 0:01:54.3]} 24. Nc3 {[%clk 0:00:50.4]} 24...
Rae8 {[%clk 0:01:38.8]} 25. Rfe1 {[%clk 0:00:50.3]} 25... b6 {[%clk 0:01:39.3]}
26. Rbd1 {[%clk 0:00:44.6]} 26... h6 {[%clk 0:01:35.6]} 27. Rd7 {[%clk
0:00:36.9]} 27... Qf6 {[%clk 0:01:27.5]} 28. e7 {[%clk 0:00:31.3]} 28... Rf7
{[%clk 0:01:21.3]} 29. Rd8 {[%clk 0:00:28.5]} 29... Rxd8 {[%clk 0:01:21.3]} 30.
exd8=Q+ {[%clk 0:00:29.3]} 30... Qxd8 {[%clk 0:01:22.1]} 31. Qe8+ {[%clk
0:00:29.1]} 31... Qxe8 {[%clk 0:01:22.7]} 32. Rxe8+ {[%clk 0:00:31]} 32... Kh7
{[%clk 0:01:24.2]} 33. g3 {[%clk 0:00:28.3]} 33... Rc7 {[%clk 0:01:24.3]} 34.
Nb5 {[%clk 0:00:29.1]} 34... Rc5 {[%clk 0:01:12.8]} 35. Nxa7 {[%clk 0:00:28.2]}
35... Ra5 {[%clk 0:01:14]} 36. Nc8 {[%clk 0:00:28.5]} 36... Ra8 {[%clk
0:01:13.5]} 37. Nd6 {[%clk 0:00:23.9]} 37... Rxa2 {[%clk 0:01:14]} 38. Re7
{[%clk 0:00:20.4]} 38... Kg8 {[%clk 0:01:07.7]} 39. Nf5 {[%clk 0:00:18.6]} 39...
Kf8 {[%clk 0:00:57.8]} 40. Rb7 {[%clk 0:00:17.2]} 40... g6 {[%clk 0:00:50.9]}
41. Nxh6 {[%clk 0:00:16.1]} 41... Rb2 {[%clk 0:00:48.5]} 42. h4 {[%clk
0:00:14.8]} 42... b5 {[%clk 0:00:47]} 43. Ng4 {[%clk 0:00:15.3]} 43... b4 {[%clk
0:00:46.5]} 44. Ne5 {[%clk 0:00:16.5]} 44... b3 {[%clk 0:00:47.1]} 45. Nxg6+
{[%clk 0:00:17.6]} 45... Ke8 {[%clk 0:00:47.8]} 46. h5 {[%clk 0:00:15]} 46...
Rb1+ {[%clk 0:00:44.1]} 47. Kg2 {[%clk 0:00:15.4]} 47... Kd8 {[%clk 0:00:43.5]}
48. h6 {[%clk 0:00:15.5]} 48... Kc8 {[%clk 0:00:44.1]} 49. Rb4 {[%clk
0:00:14.5]} 1-0